bitfinex-derivatives/quotes_SOLF0:USTF0_20240926
["timestamp","ask_amount","ask_price","bid_price","bid_amount"]
[1727336907456,3.3026,151.42,151.4,7.01486034]
[1727336907661,3.3026,151.42,151.39,14.4831]
[1727336907863,11.18,151.45,151.4,10.31782687]
[1727336907864,3.3024,151.43,151.4,10.31782687]
[1727336908061,3.3024,151.43,151.4,3.3029]
[1727336910168,3.303,151.41,151.38,3.3034]
[1727336910467,3.303,151.41,151.39,7.01534756]
[1727336910667,3.303,151.41,151.38,3.3034]
[1727336911167,3.303,151.41,151.39,7.01549582]
[1727336911461,3.303,151.41,151.38,3.3034]
[1727336911668,3.303,151.41,151.39,7.0157462]
[1727336911861,3.303,151.41,151.38,3.3034]
[1727336912062,3.303,151.41,151.39,7.01574336]
[1727336912262,3.303,151.41,151.38,3.3034]
[1727336912464,3.303,151.41,151.39,7.01604762]
[1727336912666,3.303,151.41,151.38,3.3034]
[1727336912868,3.3026,151.42,151.39,21.49730847]
[1727336913069,3.3026,151.42,151.39,14.4832]
[1727336913270,3.3026,151.42,151.4,11.18]
[1727336913664,3.3023,151.43,151.4,14.4829]
[1727336914362,1.3008,151.45,151.42,11.18]
[1727336914666,12.4885,151.51,151.44,11.18]
[1727336914966,1.3085,151.51,151.48,11.18]
[1727336915663,4.6092,151.51,151.48,11.18]
[1727336916765,3.3007,151.51,151.48,14.4811]
[1727336916968,3.3004,151.52,151.48,14.4811]
[1727336917263,3.3004,151.52,151.49,11.18]
[1727336918269,3.3004,151.52,151.5,11.18]
[1727336919363,12.5544,151.55,151.5,11.18]
[1727336919563,1.3744,151.55,151.5,11.18]
[1727336919966,3.3003,151.53,151.5,11.18]
[1727336920366,3.3003,151.53,151.49,11.18]
[1727336920367,11.18,151.53,151.49,11.18]
[1727336920972,3.3006,151.51,151.49,11.18]
[1727336921368,3.3009,151.5,151.46,3.3015]
[1727336921568,3.3009,151.5,151.47,11.18]
[1727336922377,3.301,151.49,151.46,14.4815]
[1727336922566,3.301,151.49,151.46,3.3015]
[1727336922772,3.301,151.49,151.45,14.4818]
[1727336922976,3.301,151.49,151.45,11.18]
[1727336923373,3.301,151.49,151.45,14.4818]
[1727336923573,3.3013,151.48,151.45,3.3018]
[1727336923773,11.18,151.5,151.45,14.4818]
[1727336924067,1.3744,151.55,151.46,11.18]
[1727336924068,3.3011,151.49,151.46,11.18]
[1727336924326,3.3011,151.49,151.46,14.4816]
[1727336926067,3.3011,151.49,151.46,11.18]
[1727336929278,3.3011,151.49,151.46,14.4816]
[1727336931180,3.3008,151.5,151.48,11.18]
[1727336933484,3.3006,151.51,151.48,11.18]
[1727336933893,11.18,151.53,151.48,11.18]
[1727336934983,3.3007,151.51,151.48,14.4811]
[1727336935389,3.3007,151.51,151.49,11.18]
[1727336937390,3.3007,151.51,151.48,3.3011]
[1727336937587,3.3007,151.51,151.49,11.18]
[1727336941394,1.3744,151.55,151.5,11.18]
[1727336941596,12.5544,151.55,151.5,11.18]
[1727336942094,3.3005,151.52,151.5,11.18]
[1727336943598,3.3006,151.51,151.48,3.3012]
[1727336943895,11.18,151.53,151.48,11.18]
[1727336944085,3.3006,151.51,151.48,14.4812]
[1727336944890,3.3004,151.52,151.49,14.481]
[1727336946595,3.3006,151.51,151.49,11.18]
[1727336946791,3.3006,151.51,151.48,14.4811]
[1727336947689,13.12333905,151.68,151.5,11.18]
[1727336947892,11.18,151.57,151.52,11.18]
[1727336948294,3.2998,151.55,151.53,11.18]
[1727336948489,3.964,151.62,151.54,11.18]
[1727336948490,11.18,151.6,151.54,11.18]
[1727336948687,3.964,151.62,151.53,11.18]
[1727336948688,3.2996,151.56,151.53,11.18]
[1727336948891,3.964,151.62,151.53,11.18]
[1727336948892,11.18,151.57,151.53,11.18]
[1727336949095,11.18,151.57,151.52,3.3003]
[1727336949295,11.18,151.57,151.52,14.4803]
[1727336949492,3.2998,151.55,151.52,11.18]
[1727336950396,3.3,151.54,151.52,11.18]
[1727336950605,3.3,151.54,151.51,11.18]
[1727336951490,3.3,151.54,151.51,14.4805]
[1727336951897,3.3,151.54,151.52,11.18]
[1727336952098,3.2997,151.55,151.52,11.18]
[1727336952694,3.2997,151.55,151.52,14.4803]
[1727336952996,11.18,151.58,151.53,11.18]
[1727336952997,3.2996,151.56,151.53,11.18]
[1727336953901,3.2996,151.56,151.53,14.4801]
[1727336954102,3.2993,151.57,151.53,11.18]
[1727336954600,3.2993,151.57,151.53,14.48]
[1727336955533,3.2993,151.57,151.54,3.2999]
[1727336955696,11.18,151.59,151.51,3.2425504]
[1727336955897,11.18,151.57,151.52,14.4802]
[1727336956297,3.2997,151.55,151.52,14.4802]
[1727336960802,3.2997,151.55,151.52,3.3002]
[1727336960998,3.2997,151.55,151.52,14.4802]
[1727336962709,3.2997,151.55,151.52,3.3002]
[1727336962905,3.2997,151.55,151.53,11.18]
[1727336966215,11.18,151.58,151.51,3.33641757]
[1727336966216,3.2999,151.54,151.51,3.33641757]
[1727336966508,3.2999,151.54,151.51,11.18]
[1727336967915,3.2999,151.54,151.51,14.4806]
[1727336971512,3.3001,151.53,151.5,3.3007]
[1727336971720,3.3001,151.53,151.51,11.18]
[1727336973310,11.18,151.53,151.48,79.2]
[1727336973515,11.18,151.53,151.48,90.38]
[1727336974009,3.3007,151.51,151.48,90.38]
[1727336974814,3.3007,151.51,151.48,93.681]
[1727336975012,3.3007,151.51,151.48,82.501]
[1727336975212,3.3007,151.51,151.48,93.681]
[1727336975615,3.3007,151.51,151.47,3.3013]
[1727336975919,3.3007,151.51,151.48,11.18]
[1727336976415,3.3007,151.51,151.48,14.4812]
[1727336976608,3.3008,151.5,151.48,11.18]
[1727336979022,3.3007,151.51,151.48,11.18]
[1727336980215,3.3009,151.5,151.46,3.3016]
[1727336980416,3.3009,151.5,151.47,11.18]
[1727336981920,3.3009,151.5,151.47,14.4814]
[1727336983409,3.3006,151.51,151.47,14.4814]
[1727336984417,3.3008,151.5,151.47,14.4814]
[1727336984922,3.3008,151.5,151.47,11.18]
[1727336986322,3.3008,151.5,151.46,3.3016]
[1727336986522,3.3008,151.5,151.47,11.18]
[1727336986922,3.3008,151.5,151.47,14.4814]
[1727336987124,3.3008,151.5,151.47,3.3014]
[1727336987427,3.301,151.49,151.46,11.18]
[1727336987622,11.18,151.52,151.46,14.4815]
[1727336988723,3.3009,151.5,151.47,3.3014]
[1727336989224,1.3409,151.54,151.49,11.18]
[1727336989425,1.3409,151.54,151.44,79.22]
[1727336989426,2.6839,151.55,151.51,11.18]
[1727336989930,3.3001,151.54,151.51,11.18]
[1727336990519,1.354,151.55,151.52,14.4803]
[1727336990722,11.18,151.58,151.53,11.18]
[1727336991150,3.2996,151.56,151.53,11.18]
[1727336991730,3.2996,151.56,151.53,14.4801]
[1727336996531,3.2997,151.55,151.52,14.4802]
[1727336997130,11.18,151.57,151.52,14.4802]
[1727336997131,3.2995,151.56,151.53,3.3001]
[1727336997736,3.2995,151.56,151.52,14.4803]
[1727336998435,3.2997,151.55,151.52,14.4803]
[1727336999033,11.18,151.55,151.47,79.22]
[1727336999235,11.18,151.55,151.49,11.18]
[1727336999936,3.3002,151.53,151.51,11.18]
[1727337001134,3.3002,151.53,151.5,11.18]
[1727337001441,3.3002,151.53,151.51,11.18]
[1727337002241,3.3002,151.53,151.5,3.3007]
[1727337003740,3.3002,151.53,151.51,11.18]
[1727337005236,3.3,151.54,151.51,11.18]
[1727337006333,3.2998,151.55,151.52,11.18]
[1727337008141,3.2998,151.55,151.51,3.3005]
[1727337008142,3.2995,151.56,151.53,14.4801]
[1727337008442,2.6728,151.58,151.53,11.18]
[1727337008641,3.2996,151.56,151.53,11.18]
[1727337008839,11.18,151.57,151.53,11.18]
[1727337009039,2.6728,151.58,151.53,11.18]
[1727337009434,13.8528,151.58,151.53,11.18]
[1727337010941,3.2996,151.56,151.53,11.18]
[1727337011639,3.2996,151.56,151.52,3.3002]
[1727337011842,3.2996,151.56,151.53,11.18]
[1727337013338,3.2996,151.56,151.53,14.48]
[1727337013934,2.6728,151.58,151.49,79.22]
[1727337014140,2.6728,151.58,151.52,11.18]
[1727337014644,11.18,151.57,151.52,11.18]
[1727337015540,2.6728,151.58,151.52,14.4802]
[1727337015838,3.2998,151.55,151.52,14.4802]
[1727337016642,3.2999,151.54,151.52,11.18]
[1727337018846,3.3001,151.53,151.51,11.18]
[1727337019040,11.18,151.57,151.49,79.22]
[1727337019248,3.3002,151.53,151.5,6.99762008]
[1727337019446,3.29669195,151.6,151.49,82.5208]
[1727337019447,19.83,151.83,151.52,11.18]
[1727337019742,19.83,151.83,151.49,79.22]
[1727337019743,11.18,151.63,151.57,11.18]
[1727337019943,1.3673,151.67,151.58,11.18]
[1727337020246,2.5565,151.66,151.6,11.18]
[1727337020449,3.2985,151.61,151.6,11.18]
[1727337021446,3.2986,151.6,151.56,3.2994]
[1727337021649,3.2986,151.6,151.58,11.18]
[1727337022048,11.18,151.64,151.58,11.18]
[1727337023055,3.2986,151.6,151.58,11.18]
[1727337023553,3.2986,151.6,151.59,11.18]
[1727337027251,3.2986,151.6,151.57,3.2992]
[1727337027449,3.2992,151.58,151.5,2.5096]
[1727337027654,3.2992,151.58,151.57,11.18]
[1727337028049,2.5565,151.66,151.57,11.18]
[1727337028253,11.18,151.65,151.6,11.18]
[1727337029050,3.2984,151.61,151.6,11.18]
[1727337034960,3.2989,151.59,151.58,11.18]
[1727337035359,1.3039,151.62,151.57,11.18]
[1727337035963,1.3039,151.62,151.59,11.18]
[1727337036460,3.2986,151.6,151.59,11.18]
[1727337038161,3.2984,151.61,151.59,11.18]
[1727337038361,3.2984,151.61,151.6,11.18]
[1727337039161,3.2984,151.61,151.58,3.299]
[1727337039456,3.2984,151.61,151.6,11.18]
[1727337039667,2.5565,151.66,151.6,11.18]
[1727337039861,13.7365,151.66,151.53,130.98551959]
[1727337040062,3.2982,151.62,151.61,11.18]
[1727337042666,2.5565,151.66,151.61,11.18]
[1727337042865,2.5565,151.66,151.63,11.18]
[1727337043366,3.2981,151.63,151.62,11.18]
[1727337044266,3.2981,151.63,151.59,3.2987]
[1727337044560,3.2981,151.63,151.62,11.18]
[1727337044763,2.5565,151.66,151.59,3.2987]
[1727337044764,3.2983,151.62,151.59,3.2987]
[1727337044963,3.2983,151.62,151.61,11.18]
[1727337045366,3.2984,151.61,151.59,11.18]
[1727337046863,3.2986,151.6,151.58,11.18]
[1727337047965,3.2988,151.59,151.56,3.2995]
[1727337048162,3.2988,151.59,151.55,79.18]
[1727337048367,11.18,151.63,151.58,11.18]
[1727337049071,3.299,151.59,151.58,11.18]
[1727337052264,3.2986,151.6,151.58,11.18]
[1727337052761,3.2986,151.6,151.53,130.98551959]
[1727337052762,3.2986,151.6,151.59,11.18]
[1727337052962,3.2986,151.6,151.57,3.2992]
[1727337053168,3.2986,151.6,151.59,11.18]
[1727337055670,11.18,151.64,151.56,3.2994]
[1727337055671,3.2989,151.59,151.56,3.2994]
[1727337055870,3.2989,151.59,151.58,11.18]
[1727337056170,3.2989,151.59,151.56,3.2994]
[1727337056473,3.2989,151.59,151.58,11.18]
[1727337056671,3.2991,151.58,151.53,130.98551959]
[1727337056874,11.18,151.63,151.57,11.18]
[1727337057870,3.299,151.59,151.57,11.18]
[1727337059371,3.299,151.59,151.58,11.18]
[1727337060775,3.2992,151.58,151.57,11.18]
[1727337061577,3.2992,151.58,151.53,51.80551959]
[1727337061780,3.2992,151.58,151.57,11.18]
[1727337062582,3.2996,151.56,151.53,55.10551959]
[1727337062777,1.3456,151.61,151.55,11.18]
[1727337062993,11.18,151.6,151.55,11.18]
[1727337063383,11.18,151.6,151.54,11.18]
[1727337063578,3.2996,151.56,151.54,11.18]
[1727337063781,2.7276,151.61,151.55,11.18]
[1727337063979,3.2993,151.57,151.56,11.18]
[1727337065079,3.2993,151.57,151.54,3.2998]
[1727337065277,3.2993,151.57,151.56,11.18]
[1727337066485,3.2993,151.57,151.54,3.2997]
[1727337066795,2.7276,151.61,151.52,79.18]
[1727337066796,3.2995,151.56,151.52,79.18]
[1727337066988,3.2995,151.56,151.55,11.18]
[1727337067188,2.7276,151.61,151.55,11.18]
[1727337067485,3.2994,151.57,151.55,11.18]
[1727337069287,3.2991,151.58,151.55,14.4797]
[1727337069518,3.2991,151.58,151.57,11.18]
[1727337069691,2.7276,151.61,151.57,11.18]
[1727337069892,3.299,151.59,151.57,11.18]
[1727337070189,2.7276,151.61,151.57,11.18]
[1727337070388,2.7276,151.61,151.59,11.18]
[1727337071894,3.2986,151.6,151.59,11.18]
[1727337078895,13.21304069,151.68,151.59,11.18]
[1727337079099,13.21304069,151.68,151.57,3.33179641]
[1727337079100,11.18,151.67,151.57,3.33179641]
[1727337079400,11.18,151.67,151.6,11.18]
[1727337079401,3.2983,151.62,151.6,11.18]
[1727337079600,11.18,151.66,151.6,11.18]
[1727337079795,11.18,151.65,151.59,11.18]
[1727337080199,3.2983,151.62,151.59,11.18]
[1727337080709,3.2981,151.63,151.59,11.18]
[1727337080911,11.18,151.65,151.59,11.18]
[1727337081506,3.2986,151.61,151.59,11.18]
[1727337082903,11.18,151.65,151.59,11.18]
[1727337083301,3.2982,151.62,151.6,11.18]
[1727337083907,1.2821,151.67,151.6,11.18]
[1727337084111,11.18,151.65,151.6,11.18]
[1727337084304,11.18,151.65,151.59,11.18]
[1727337084499,3.2983,151.62,151.59,11.18]
[1727337085202,3.2984,151.61,151.57,6.53112989]
[1727337085398,3.2984,151.61,151.59,11.18]
[1727337086704,11.18,151.63,151.56,55.09818142]
[1727337086902,11.18,151.63,151.57,11.18]
[1727337087105,1.2821,151.67,151.56,51.79878142]
[1727337087106,11.18,151.62,151.56,51.79878142]
[1727337087303,13.9021,151.62,151.56,62.97878142]
[1727337088303,3.299,151.59,151.56,62.97878142]
[1727337088908,3.299,151.58,151.56,62.97878142]
[1727337089112,13.9021,151.62,151.56,62.97878142]
[1727337089807,13.9021,151.62,151.57,11.18]
[1727337090808,3.2989,151.59,151.57,11.18]
[1727337092310,13.9021,151.62,151.55,82.4797]
[1727337092311,3.2995,151.56,151.55,79.18]
[1727337092516,3.2995,151.56,151.55,90.36]
[1727337092809,11.18,151.61,151.55,90.36]
[1727337093909,11.18,151.61,151.55,11.18]
[1727337094516,3.2992,151.58,151.55,11.18]
[1727337095710,11.18,151.6,151.55,11.18]
[1727337095919,2.7221,151.62,151.55,11.18]
[1727337095920,11.18,151.59,151.55,11.18]
[1727337096114,11.18,151.59,151.5,81.0242]
[1727337096115,2.7221,151.62,151.56,11.18]
[1727337096307,13.9021,151.62,151.56,11.18]
[1727337096506,13.9021,151.62,151.58,11.18]
[1727337096716,3.2988,151.59,151.58,11.18]
[1727337097416,3.2987,151.6,151.58,11.18]
[1727337098011,2.7221,151.62,151.59,11.18]
[1727337099017,2.7221,151.62,151.54,10.96682738]
[1727337099311,2.7221,151.62,151.58,11.18]
[1727337099910,3.2984,151.61,151.58,11.18]
[1727337101016,3.2986,151.6,151.58,11.18]
[1727337104518,2.7221,151.62,151.57,11.18]
[1727337104519,3.2988,151.59,151.57,11.18]
[1727337105109,2.7221,151.62,151.55,11.18]
[1727337105513,11.18,151.6,151.55,11.18]
[1727337106114,3.2992,151.58,151.55,11.18]
[1727337106313,11.18,151.6,151.55,11.18]
[1727337107017,3.2992,151.58,151.56,11.18]
[1727337111419,3.2989,151.59,151.56,11.18]
[1727337113521,6.5885,151.81,151.58,11.18]
[1727337113718,6.5885,151.81,151.57,22.48890064]
[1727337113719,13.8945,151.74,151.69,11.18]
[1727337113918,3.2962,151.72,151.69,11.18]
[1727337114315,3.2955,151.75,151.71,11.18]
[1727337114526,11.18,151.73,151.64,22.44811835]
[1727337114823,11.18,151.73,151.61,79.18]
[1727337114824,11.18,151.73,151.67,11.18]
[1727337115122,3.296,151.72,151.67,11.18]
[1727337115326,4.0604,151.74,151.69,11.18]
[1727337115519,4.0604,151.74,151.61,82.49320376]
[1727337115520,4.0604,151.74,151.7,11.18]
[1727337116322,7.3561,151.74,151.7,11.18]
[1727337116517,4.0604,151.74,151.7,11.18]
[1727337116724,15.2404,151.74,151.7,11.18]
[1727337117626,15.2404,151.74,151.68,11.18]
[1727337120133,3.2964,151.71,151.68,11.18]
[1727337121234,3.2965,151.7,151.68,11.18]
[1727337121833,11.18,151.73,151.67,11.18]
[1727337122129,4.0604,151.74,151.67,11.18]
[1727337122130,3.2966,151.69,151.67,11.18]
[1727337122728,3.2969,151.68,151.67,11.18]
[1727337123128,11.18,151.72,151.67,11.18]
[1727337123329,3.2968,151.69,151.67,11.18]
[1727337123927,11.18,151.68,151.61,79.18]
[1727337124129,11.18,151.68,151.62,11.18]
[1727337124434,3.2971,151.67,151.64,11.18]
[1727337124632,11.18,151.7,151.65,11.18]
[1727337124829,3.297,151.68,151.65,11.18]
[1727337125337,11.18,151.7,151.65,11.18]
[1727337126132,3.2971,151.67,151.64,11.18]
[1727337126337,11.18,151.7,151.64,11.18]
[1727337127237,11.18,151.68,151.64,11.18]
[1727337127534,3.2971,151.67,151.64,11.18]
[1727337127735,11.18,151.68,151.64,11.18]
[1727337128137,3.2973,151.66,151.64,11.18]
[1727337129035,11.18,151.7,151.65,11.18]
[1727337129238,4.0604,151.74,151.65,11.18]
[1727337129428,11.18,151.71,151.65,11.18]
[1727337130335,3.2969,151.68,151.65,11.18]
[1727337131537,4.0604,151.74,151.66,11.18]
[1727337131733,11.18,151.73,151.68,11.18]
[1727337131937,4.0604,151.74,151.68,11.18]
[1727337132172,3.2966,151.7,151.68,11.18]
[1727337133237,3.2967,151.69,151.66,11.18]
[1727337133437,11.18,151.71,151.66,11.18]
[1727337133642,11.18,151.71,151.65,11.18]
[1727337134042,4.0604,151.74,151.66,11.18]
[1727337134240,11.18,151.72,151.66,11.18]
[1727337134440,3.2966,151.7,151.66,11.18]
[1727337135641,3.2972,151.67,151.63,3.2979]
[1727337135842,3.2972,151.67,151.64,11.18]
[1727337136755,3.2972,151.67,151.64,14.4777]
[1727337137435,3.2972,151.67,151.64,11.18]
[1727337138351,11.18,151.69,151.64,11.18]
[1727337138538,11.18,151.69,151.6,3.2802258]
[1727337138742,3.34850788,151.7,151.59,79.14]
[1727337139066,11.18,151.66,151.61,14.4782]
[1727337139248,3.2977,151.65,151.61,14.4782]
[1727337139467,3.2977,151.65,151.62,14.4782]
[1727337140741,3.2978,151.64,151.62,11.18]
[1727337141446,11.18,151.65,151.59,79.14]
[1727337141742,11.18,151.65,151.6,11.18]
[1727337141944,11.18,151.65,151.59,82.4387]
[1727337142141,11.18,151.65,151.59,93.6187]
[1727337143045,11.18,151.64,151.59,79.14]
[1727337143338,11.18,151.62,151.59,79.14]
[1727337143742,1.3298,151.67,151.59,90.32]
[1727337144045,11.18,151.64,151.59,90.32]
[1727337144239,11.18,151.65,151.6,11.18]
[1727337144644,3.2981,151.63,151.61,11.18]
[1727337145873,1.3298,151.67,151.59,90.32]
[1727337145874,11.18,151.64,151.59,90.32]
[1727337146038,11.18,151.63,151.59,79.14]
[1727337146238,11.18,151.61,151.59,79.14]
[1727337146747,3.2986,151.6,151.59,79.14]
[1727337146948,11.18,151.61,151.57,11.18]
[1727337147951,1.3298,151.67,151.6,11.18]
[1727337148152,11.18,151.66,151.6,11.18]
[1727337149365,1.3298,151.67,151.62,11.18]
[1727337150752,2.6849,151.68,151.62,11.18]
[1727337150942,2.6849,151.68,151.54,79.16]
[1727337150943,2.6849,151.68,151.64,11.18]
[1727337151347,2.6849,151.68,151.65,11.18]
[1727337151554,3.2971,151.67,151.65,11.18]
[1727337154258,3.2969,151.68,151.65,11.18]
[1727337157757,3.2971,151.67,151.65,11.18]
[1727337158052,2.7019,151.72,151.58,79.16]
[1727337158053,11.18,151.69,151.58,79.16]
[1727337158253,11.18,151.69,151.63,11.18]
[1727337158446,11.18,151.68,151.63,11.18]
[1727337158854,3.2976,151.65,151.63,11.18]
[1727337159052,11.18,151.68,151.63,11.18]
[1727337159246,11.18,151.69,151.64,11.18]
[1727337159445,3.2972,151.67,151.64,11.18]
[1727337160155,3.2973,151.66,151.64,11.18]
[1727337162056,3.2971,151.67,151.64,11.18]
[1727337162956,3.2971,151.67,151.64,14.4777]
[1727337163257,11.18,151.7,151.58,79.16]
[1727337163258,11.18,151.68,151.58,79.16]
[1727337163449,11.18,151.67,151.62,11.18]
[1727337163750,11.18,151.67,151.62,14.4782]
[1727337163958,11.18,151.67,151.62,11.18]
[1727337164451,3.2976,151.65,151.62,11.18]
[1727337165758,3.2976,151.65,151.62,14.478]
[1727337171862,3.2976,151.65,151.62,3.298]
[1727337173963,3.2977,151.64,151.61,14.4783]
[1727337174166,3.2977,151.64,151.61,11.18]
[1727337174365,3.2977,151.64,151.61,14.4783]
[1727337174565,3.2977,151.64,151.61,11.18]
[1727337175260,3.2976,151.65,151.61,11.18]
[1727337175762,3.2976,151.65,151.62,3.2981]
[1727337177066,3.2974,151.66,151.64,11.18]
[1727337178162,3.2974,151.66,151.63,14.4779]
[1727337179068,3.2974,151.66,151.58,4.66124034]
[1727337179069,3.2975,151.65,151.62,14.4781]
[1727337179767,3.2973,151.66,151.63,14.4779]
[1727337182971,3.2972,151.67,151.64,3.2977]
[1727337185064,11.18,151.67,151.58,83.82124034]
[1727337185305,11.18,151.67,151.62,11.18]
[1727337186767,11.18,151.67,151.58,83.82124034]
[1727337186768,11.18,151.66,151.61,11.18]
[1727337187163,11.18,151.65,151.61,11.18]
[1727337187769,3.2979,151.64,151.61,14.4784]
[1727337187970,11.18,151.65,151.61,14.4784]
[1727337188177,3.2979,151.64,151.61,14.4784]
[1727337188983,3.298,151.63,151.61,11.18]
[1727337190176,3.2978,151.64,151.62,11.18]
[1727337192974,3.2976,151.65,151.62,14.4781]
[1727337195074,4.5857,151.66,151.63,3.2979]
[1727337195373,3.2973,151.66,151.63,3.2979]
[1727337199880,14.4773,151.66,151.63,3.2979]
[1727337200281,3.2973,151.66,151.63,3.2979]
[1727337203682,12.474,151.67,151.62,11.18]
[1727337203683,3.2976,151.65,151.62,11.18]
[1727337204085,3.30474473,151.7,151.57,79.16]
[1727337204086,6.586,151.86,151.58,6.5979]
[1727337204280,11.18,151.76,151.59,29.62240073]
[1727337204585,2.7043,151.82,151.57,79.16]
[1727337204586,3.27406228,151.78,151.7,11.18]
[1727337204784,14.4752,151.76,151.7,11.18]
[1727337205175,14.4752,151.76,151.72,3.2958]
[1727337205381,11.18,151.76,151.72,3.2958]
[1727337207691,11.18,151.76,151.7,11.18]
[1727337207982,11.18,151.74,151.69,11.18]
[1727337208388,11.18,151.74,151.62,0.6615]
[1727337208389,3.33103204,151.77,151.7,3.2963]
[1727337208689,11.18,151.72,151.63,18.18062217]
[1727337208989,14.4762,151.72,151.66,11.18]
[1727337209184,14.4762,151.72,151.63,7.46283207]
[1727337209185,11.18,151.72,151.67,11.18]
[1727337209387,11.18,151.72,151.69,3.2966]
[1727337209889,14.4759,151.73,151.69,3.2966]
[1727337210783,11.18,151.73,151.7,3.2964]
[1727337211186,11.18,151.73,151.68,11.18]
[1727337211382,11.18,151.73,151.69,3.2965]
[1727337211788,11.18,151.72,151.69,3.2965]
[1727337211988,14.476,151.72,151.68,3.2967]
[1727337212586,11.18,151.7,151.64,6.69830197]
[1727337212791,11.18,151.7,151.65,11.18]
[1727337212990,11.18,151.7,151.68,3.2968]
[1727337213388,3.2963,151.71,151.68,3.2968]
[1727337213586,11.18,151.71,151.63,79.12]
[1727337213786,11.18,151.71,151.66,11.18]
[1727337214894,14.4763,151.71,151.68,3.2969]
[1727337215989,14.4763,151.71,151.67,3.297]
[1727337216191,11.18,151.69,151.63,11.18]
[1727337216591,14.4767,151.69,151.65,3.2973]
[1727337217197,3.2969,151.68,151.65,3.2973]
[1727337218391,14.4769,151.68,151.65,3.2973]
[1727337218797,11.18,151.67,151.62,79.12]
[1727337218994,11.18,151.66,151.62,79.12]
[1727337219995,14.4775,151.66,151.63,3.2979]
[1727337220597,3.2976,151.65,151.62,82.4181]
[1727337221001,11.18,151.66,151.62,79.12]
[1727337221189,14.4774,151.66,151.63,3.2979]
[1727337223799,11.18,151.66,151.63,3.2979]
[1727337224894,3.2971,151.67,151.63,14.4779]
[1727337225098,14.4771,151.67,151.63,14.4779]
[1727337225301,14.4771,151.67,151.63,3.2979]
[1727337226805,3.2973,151.66,151.63,3.2979]
[1727337228204,11.18,151.66,151.62,3.2981]
[1727337228900,14.4774,151.66,151.62,3.2981]
[1727337229707,3.2976,151.65,151.62,3.2981]
[1727337231007,14.4774,151.66,151.62,3.2981]
[1727337235406,3.2975,151.65,151.62,3.2981]
[1727337235812,11.18,151.66,151.62,3.2981]
[1727337236810,14.4774,151.66,151.62,3.2981]
[1727337244011,3.2974,151.66,151.62,3.2981]
[1727337244216,3.2975,151.65,151.62,3.2981]
[1727337245947,14.4774,151.66,151.63,3.2979]
[1727337246917,11.18,151.65,151.63,3.2979]
[1727337247917,3.2974,151.66,151.63,3.2979]
[1727337248120,15.1623,151.68,151.63,11.18]